[Event "VIII Open Semana Santa-B 2024"]
[Site "San Vicente del Raspeig"]
[Date "2024.03.27"]
[Round "1.1"]
[White "Demerson Joly, Javier"]
[Black "Ghezzali, Leana"]
[Result "1-0"]
[ECO "A24"]
[WhiteElo "1900"]
[BlackElo "1660"]
[Annotator "NA RC"]
[PlyCount "77"]
[EventDate "2024.03.27"]
[EventType "swiss"]
[EventCountry "ESP"]
[SourceTitle "playchess.com"]
[Source "ChessBase"]
[SourceQuality "1"]
[TimeControl "5400+30"]

1. c4 {[%emt 0:00:03]} e5 {[%emt 0:00:26]} 2. Nc3 {[%emt 0:00:12]} Nf6 {[%emt 0:00:54]} 3. Nf3 {[%emt 0:00:22]} d6 {[%emt 0:02:21]} 4. d4 {[%emt 0:00:40]} exd4 {[%emt 0:03:34]} 5. Nxd4 {[%emt 0:00:15]} Nbd7 {[%emt 0:01:20]} 6. g3 {[%emt 0:01:49]} g6 {[%emt 0:01:30]} 7. Bg2 {[%emt 0:03:23]} Bg7 {[%emt 0:01:14]} 8. O-O {[%emt 0:02:53]} O-O {[%emt 0:13:03]} 9. a3 {[%emt 0:03:35]} a5 {[%emt 0:00:30]} 10. b3 {[%emt 0:00:30]} c6 {[%emt 0:07:07]} 11. Be3 {[%emt 0:08:08]} Nc5 {[%emt 0:03:48]} 12. Qc2 {[%emt 0:03:18]} Re8 {[%emt 0:04:50]} 13. Rad1 {[%emt 0:01:08]} Qe7 {[%emt 0:02:01]} 14. Rfe1 {[%emt 0:08:20]} Nfe4 {[%emt 0:04:22]} 15. Nxe4 {[%emt 0:11:38]} Nxe4 {[%emt 0:00:14]} 16. Bxe4 {[%emt 0:00:45]} Qxe4 {[%emt 0:00:14]} 17. Qxe4 {[%emt 0:00:07]} Rxe4 {[%emt 0:00:07]} 18. Kg2 {[%emt 0:00:10]} Bd7 {[%emt 0:16:22]} 19. Rd3 {[%emt 0:05:10]} Rae8 {[%emt 0:10:24]} 20. Red1 {[%emt 0:01:06]} Bc8 {[%emt 0:12:48]} 21. a4 {[%emt 0:01:54]} d5 {[%emt 0:05:36]} 22. cxd5 {[%emt 0:00:57]} cxd5 {[%emt 0:00:30]} 23. Nb5 {[%emt 0:00:30]} R4e7 {[%emt 0:00:30]} 24. Nd6 {[%emt 0:00:30]} Rd8 {[%emt 0:00:30]} 25. Nxc8 {[%emt 0:00:30]} Rxc8 {[%emt 0:04:57]} 26. Rxd5 {[%emt 0:02:27]} h5 {[%emt 0:02:26]} 27. Rxa5 {[%emt 0:05:09]} Rb8 {[%emt 0:01:03]} 28. Rad5 {[%emt 0:00:37]} b5 {[%emt 0:00:30]} 29. Bf4 {[%emt 0:00:30]} Ra8 {[%emt 0:00:30]} 30. Rd8+ {[%emt 0:00:30]} Re8 {[%emt 0:00:30]} 31. Rxe8+ {[%emt 0:00:30]} Rxe8 {[%emt 0:00:30]} 32. Kf3 {[%emt 0:00:30]} b4 {[%emt 0:00:30]} 33. Rd2 {[%emt 0:00:30]} Bc3 {[%emt 0:00:30]} 34. Rc2 {[%emt 0:00:30]} Ra8 {[%emt 0:00:30]} 35. Bd2 {[%emt 0:00:30]} Rc8 {[%emt 0:00:30]} 36. Bxc3 {[%emt 0:00:30]} bxc3 {[%emt 0:00:30]} 37. Ke3 {[%emt 0:00:30]} Kg7 {[%emt 0:00:30]} 38. Kd3 {[%emt 0:00:30]} Rd8+ {[%emt 0:00:30]} 39. Kxc3 {[%emt 0:00:30]} 1-0

[Event "VIII Open Semana Santa-B 2024"]
[Site "San Vicente del Raspeig"]
[Date "2024.03.27"]
[Round "1.2"]
[White "Sanchez Parare, Loresmar Karina"]
[Black "Garcia Ruano, Juan Carlos"]
[Result "0-1"]
[ECO "A85"]
[WhiteElo "1657"]
[BlackElo "1885"]
[Annotator "NA RC"]
[PlyCount "50"]
[EventDate "2024.03.27"]
[EventType "swiss"]
[EventCountry "ESP"]
[SourceTitle "playchess.com"]
[Source "ChessBase"]
[SourceQuality "1"]
[TimeControl "5400+30"]

1. c4 {[%emt 1:31:00]} f5 {[%emt 1:31:00]} 2. e3 {[%emt 0:00:30]} Nf6 {[%emt 0:00:30]} 3. Nc3 {[%emt 0:00:30]} e6 {[%emt 0:00:30]} 4. d4 {[%emt 0:00:30]} d5 {[%emt 0:00:30]} 5. Qc2 {[%emt 0:00:30]} c6 {[%emt 0:00:30]} 6. Nf3 {[%emt 0:00:30]} Bd6 {[%emt 0:00:30]} 7. a3 {[%emt 0:00:30]} O-O {[%emt 0:00:30]} 8. b3 {[%emt 0:00:30]} Ne4 {[%emt 0:00:30]} 9. Bb2 {[%emt 0:00:30]} Nd7 {[%emt 0:00:30]} 10. Be2 {[%emt 0:00:30]} Ndf6 {[%emt 0:00:30]} 11. h3 {[%emt 0:00:30]} Bd7 {[%emt 0:00:30]} 12. O-O-O {[%emt 0:00:30]} Nxf2 {[%emt 0:00:30]} 13. g4 {[%emt 0:00:30]} Nxd1 {[%emt 0:00:30]} 14. Bxd1 {[%emt 0:00:30]} Ne4 {[%emt 0:00:30]} 15. gxf5 {[%emt 0:00:30]} exf5 {[%emt 0:00:30]} 16. Qg2 {[%emt 0:00:30]} Qe7 {[%emt 0:00:30]} 17. cxd5 {[%emt 0:00:30]} Nxc3 {[%emt 0:00:30]} 18. Bxc3 {[%emt 0:00:30]} Bxa3+ {[%emt 0:00:30]} 19. Kd2 {[%emt 0:00:30]} cxd5 {[%emt 0:00:30]} 20. Ne5 {[%emt 0:00:30]} Be6 {[%emt 0:00:30]} 21. h4 {[%emt 0:00:30]} Rac8 {[%emt 0:00:30]} 22. h5 {[%emt 0:00:30]} f4 {[%emt 0:00:30]} 23. Ng6 {[%emt 0:00:30]} fxe3+ {[%emt 0:00:30]} 24. Kxe3 {[%emt 0:00:30]} Rxc3+ {[%emt 0:00:30]} 25. Ke2 {[%emt 0:00:30]} Bg4+ {[%emt 0:00:30]} 0-1

[Event "VIII Open Semana Santa-B 2024"]
[Site "San Vicente del Raspeig"]
[Date "2024.03.27"]
[Round "1.3"]
[White "Seleznev, Egor"]
[Black "Souloumiac, Thibault"]
[Result "1-0"]
[ECO "D02"]
[WhiteElo "1885"]
[BlackElo "1657"]
[Annotator "NA RC"]
[PlyCount "73"]
[EventDate "2024.03.27"]
[EventType "swiss"]
[EventCountry "ESP"]
[SourceTitle "playchess.com"]
[Source "ChessBase"]
[SourceQuality "1"]
[TimeControl "5400+30"]

1. d4 {[%emt 0:00:30]} Nf6 {[%emt 0:00:37]} 2. Bf4 {[%emt 0:00:38]} e6 {[%emt 0:00:37]} 3. e3 {[%emt 0:00:30]} d5 {[%emt 0:00:33]} 4. Bd3 {[%emt 0:00:44]} c5 {[%emt 0:00:47]} 5. c3 {[%emt 0:00:53]} Nc6 {[%emt 0:01:56]} 6. Nf3 {[%emt 0:02:44]} Nh5 {[%emt 0:02:30]} 7. Bg5 {[%emt 0:01:26]} Be7 {[%emt 0:04:36]} 8. Bxe7 {[%emt 0:00:33]} Qxe7 {[%emt 0:00:35]} 9. O-O {[%emt 0:03:02]} O-O {[%emt 0:06:17]} 10. Ne5 {[%emt 0:02:07]} g6 {[%emt 0:04:26]} 11. f4 {[%emt 0:02:43]} Ng7 {[%emt 0:06:09]} 12. Nd2 {[%emt 0:04:03]} Nf5 {[%emt 0:02:23]} 13. Qe2 {[%emt 0:01:15]} cxd4 {[%emt 0:04:53]} 14. exd4 {[%emt 0:00:21]} Nxe5 {[%emt 0:02:31]} 15. fxe5 {[%emt 0:00:54]} Bd7 {[%emt 0:05:02]} 16. Rae1 {[%emt 0:03:39]} Qg5 {[%emt 0:07:05]} 17. Nf3 {[%emt 0:03:59]} Qh5 {[%emt 0:01:11]} 18. g3 {[%emt 0:02:51]} Qg4 {[%emt 0:02:19]} 19. Qg2 {[%emt 0:02:30]} a6 {[%emt 0:04:29]} 20. Kf2 {[%emt 0:07:09]} Bb5 {[%emt 0:07:43]} 21. Bxb5 {[%emt 0:01:12]} axb5 {[%emt 0:00:20]} 22. h3 Qxg3+ {[%emt 0:01:33]} 23. Qxg3 {[%emt 0:00:42]} Nxg3 {[%emt 0:00:15]} 24. Kxg3 {[%emt 0:00:06]} Rxa2 {[%emt 0:00:20]} 25. Re2 h6 {[%emt 0:00:30]} 26. Ne1 Ra1 {[%emt 0:00:30]} 27. Ref2 Ra2 {[%emt 0:00:30]} 28. Nd3 b6 {[%emt 0:00:30]} 29. h4 Ra7 {[%emt 0:00:30]} 30. h5 g5 {[%emt 0:00:30]} 31. Rf6 Kg7 {[%emt 0:00:30]} 32. Kf2 Rc8 {[%emt 0:00:30]} 33. Ke2 Rc4 {[%emt 0:00:30]} 34. Kd2 Rac7 {[%emt 0:00:30]} 35. Rc1 Ra7 {[%emt 0:00:30]} 36. Rc2 Raa4 {[%emt 0:00:30]} 37. b3 1-0

[Event "VIII Open Semana Santa-B 2024"]
[Site "San Vicente del Raspeig"]
[Date "2024.03.27"]
[Round "1.4"]
[White "Travieso Obourke, Juan Carlos"]
[Black "Amoros Moran, Jose Joaquin"]
[Result "0-1"]
[ECO "B50"]
[WhiteElo "1651"]
[BlackElo "1883"]
[Annotator "NA RC"]
[PlyCount "72"]
[EventDate "2024.03.27"]
[EventType "swiss"]
[EventCountry "ESP"]
[SourceTitle "playchess.com"]
[Source "ChessBase"]
[SourceQuality "1"]
[TimeControl "5400+30"]

1. e4 {[%emt 0:00:05]} c5 {[%emt 0:00:08]} 2. Nf3 {[%emt 1:31:25]} d6 {[%emt 0:00:18]} 3. d3 {[%emt 0:00:00]} Nc6 {[%emt 0:00:12]} 4. Nc3 {[%emt 0:00:00]} g6 {[%emt 0:00:22]} 5. Bd2 {[%emt 0:00:00]} Bg7 {[%emt 0:00:30]} 6. a3 {[%emt 0:00:00]} Nf6 {[%emt 0:00:30]} 7. Rb1 {[%emt 0:00:00]} O-O {[%emt 0:00:30]} 8. Be2 {[%emt 0:00:00]} b6 {[%emt 0:00:30]} 9. Qc1 {[%emt 0:00:00]} Ba6 {[%emt 0:00:30]} 10. Bh6 {[%emt 0:00:00]} Rc8 {[%emt 0:00:30]} 11. Bxg7 {[%emt 0:00:00]} Kxg7 {[%emt 0:00:30]} 12. h3 {[%emt 0:00:00]} h6 {[%emt 0:00:30]} 13. g4 {[%emt 0:00:00]} Nd7 {[%emt 0:00:30]} 14. h4 {[%emt 0:00:00]} Nd4 {[%emt 0:00:30]} 15. h5 {[%emt 0:00:00]} Nxf3+ {[%emt 0:00:30]} 16. Bxf3 {[%emt 0:00:00]} g5 {[%emt 0:00:30]} 17. Bg2 {[%emt 0:00:00]} Ne5 {[%emt 0:32:26]} 18. f4 {[%emt 0:00:00]} gxf4 {[%emt 0:00:30]} 19. Qxf4 {[%emt 0:00:00]} e6 {[%emt 0:00:30]} 20. Ke2 {[%emt 0:00:00]} Qg5 {[%emt 0:04:51]} 21. Qxg5+ {[%emt 0:00:00]} hxg5 {[%emt 0:00:30]} 22. Bh3 {[%emt 0:00:00]} b5 {[%emt 0:00:30]} 23. Rbf1 {[%emt 0:00:00]} b4 {[%emt 0:05:04]} 24. Nd1 {[%emt 0:00:00]} c4 {[%emt 0:00:30]} 25. c3 {[%emt 0:00:00]} cxd3+ {[%emt 0:00:30]} 26. Kf2 {[%emt 0:00:00]} bxa3 {[%emt 0:09:35]} 27. bxa3 {[%emt 0:00:00]} Rc4 {[%emt 0:00:30]} 28. Ke3 {[%emt 0:00:00]} Ra4 {[%emt 0:00:30]} 29. Rfg1 {[%emt 0:00:00]} Rxa3 {[%emt 0:00:30]} 30. Rg2 {[%emt 0:00:00]} Ra4 {[%emt 0:07:03]} 31. Rgh2 {[%emt 0:00:00]} Ra1 {[%emt 0:00:30]} 32. h6+ {[%emt 0:00:00]} Kh7 {[%emt 0:00:30]} 33. Nb2 {[%emt 0:00:00]} Rxh1 {[%emt 0:00:30]} 34. Rxh1 {[%emt 0:00:00]} Rb8 {[%emt 0:00:30]} 35. Rh2 {[%emt 0:00:00]} Rxb2 {[%emt 0:00:30]} 36. Rxb2 {[%emt 0:00:00]} Nc4+ {[%emt 0:00:30]} 0-1

[Event "VIII Open Semana Santa-B 2024"]
[Site "San Vicente del Raspeig"]
[Date "2024.03.27"]
[Round "1.5"]
[White "Carretero Ajo, Jesus"]
[Black "Garcia Solbes, Juan Felipe"]
[Result "1-0"]
[ECO "C47"]
[WhiteElo "1876"]
[BlackElo "1650"]
[Annotator "NA RC"]
[PlyCount "65"]
[EventDate "2024.03.27"]
[EventType "swiss"]
[EventCountry "ESP"]
[SourceTitle "playchess.com"]
[Source "ChessBase"]
[SourceQuality "1"]
[TimeControl "5400+30"]

1. e4 {[%emt 0:00:07]} e5 {[%emt 0:00:06]} 2. Nf3 {[%emt 0:00:08]} Nc6 {[%emt 0:00:06]} 3. Nc3 {[%emt 0:00:09]} Nf6 {[%emt 0:00:18]} 4. d4 {[%emt 0:00:12]} exd4 {[%emt 0:01:01]} 5. Nxd4 {[%emt 0:00:13]} Be7 {[%emt 0:01:39]} 6. Nf5 {[%emt 0:12:59]} O-O {[%emt 0:06:12]} 7. Bd3 {[%emt 0:05:21]} d5 {[%emt 0:06:00]} 8. Nxe7+ {[%emt 0:07:31]} Qxe7 {[%emt 0:03:37]} 9. Bg5 {[%emt 0:00:36]} Qe6 {[%emt 0:09:19]} 10. Bxf6 {[%emt 0:00:45]} Qxf6 {[%emt 0:00:31]} 11. Nxd5 {[%emt 0:02:01]} Qxb2 {[%emt 0:04:02]} 12. O-O {[%emt 0:02:33]} Be6 {[%emt 0:03:04]} 13. Nxc7 {[%emt 0:03:49]} Rac8 {[%emt 0:05:18]} 14. Nxe6 {[%emt 0:00:28]} fxe6 {[%emt 0:00:22]} 15. Rb1 {[%emt 0:03:26]} Qxa2 {[%emt 0:05:13]} 16. Rxb7 {[%emt 0:00:58]} Rf7 {[%emt 0:07:36]} 17. Rxf7 {[%emt 0:02:01]} Kxf7 {[%emt 0:00:16]} 18. Qh5+ {[%emt 0:00:10]} Kg8 {[%emt 0:02:20]} 19. Rd1 {[%emt 0:08:14]} Qa5 {[%emt 0:10:09]} 20. Bb5 {[%emt 0:05:27]} Nd4 {[%emt 0:05:51]} 21. Rxd4 {[%emt 0:03:31]} g6 {[%emt 0:03:04]} 22. Qe2 {[%emt 0:02:35]} Rb8 {[%emt 0:04:22]} 23. Bc4 {[%emt 0:02:19]} Qb6 {[%emt 0:01:29]} 24. Rd1 {[%emt 0:00:25]} a5 {[%emt 0:02:58]} 25. Bb3 {[%emt 0:00:34]} Rc8 {[%emt 0:01:21]} 26. Qd3 {[%emt 0:00:37]} Qc6 {[%emt 0:01:28]} 27. Qd6 {[%emt 0:02:14]} Qxd6 {[%emt 0:02:09]} 28. Rxd6 {[%emt 0:00:03]} Kf7 {[%emt 0:00:52]} 29. Bxe6+ {[%emt 0:00:22]} Ke7 {[%emt 0:00:13]} 30. Bxc8 {[%emt 0:00:44]} Kxd6 {[%emt 0:00:06]} 31. Bb7 {[%emt 0:00:37]} a4 {[%emt 0:00:29]} 32. Bd5 {[%emt 0:00:00]} Ke5 {[%emt 0:00:18]} 33. Kf1 {[%emt 0:00:00]} 1-0

[Event "VIII Open Semana Santa-B 2024"]
[Site "San Vicente del Raspeig"]
[Date "2024.03.27"]
[Round "1.9"]
[White "Zlyvko, Myroslav"]
[Black "Sancho Pascual, Emilio"]
[Result "1/2-1/2"]
[ECO "D04"]
[WhiteElo "1869"]
[BlackElo "1635"]
[Annotator "NA RC"]
[PlyCount "60"]
[EventDate "2024.03.27"]
[EventType "swiss"]
[EventCountry "ESP"]
[SourceTitle "playchess.com"]
[Source "ChessBase"]
[SourceQuality "1"]
[TimeControl "5400+30"]

1. d4 c6 2. Nf3 d5 3. e3 Nf6 4. Bd3 Bg4 5. b3 Nbd7 6. Bb2 e6 7. O-O Bd6 8. Nbd2 O-O 9. h3 Bf5 10. Ne5 Qc7 11. f4 Ne4 12. Bxe4 Bxe4 13. Nxe4 dxe4 14. c4 f6 15. Nxd7 Qxd7 16. Qc2 f5 17. Rad1 Qf7 18. g4 Qg6 19. Qg2 Rad8 20. g5 Rf7 21. Kf2 Rfd7 22. Kg1 Rf7 23. Qe2 h6 24. h4 hxg5 25. hxg5 Rff8 26. Rf2 Kf7 27. Rh2 Rh8 28. Qg2 Rh7 29. Rxh7 Qxh7 30. d5 exd5 1/2-1/2

[Event "VIII Open Semana Santa-B 2024"]
[Site "San Vicente del Raspeig"]
[Date "2024.03.27"]
[Round "1.10"]
[White "Khomenko, Arseniy"]
[Black "Herrero Ferrando, Salvador"]
[Result "*"]
[ECO "B45"]
[WhiteElo "1633"]
[BlackElo "1854"]
[Annotator "NA RC"]
[PlyCount "96"]
[EventDate "2024.03.27"]
[EventType "swiss"]
[EventCountry "ESP"]
[SourceTitle "playchess.com"]
[Source "ChessBase"]
[SourceQuality "1"]
[TimeControl "5400+30"]

1. e4 {[%emt 0:30:04]} c5 {[%emt 0:30:32]} 2. Nf3 {[%emt 0:00:10]} e6 {[%emt 0:00:27]} 3. d4 {[%emt 0:02:20]} cxd4 {[%emt 0:00:34]} 4. Nxd4 {[%emt 0:00:50]} Nc6 {[%emt 0:00:23]} 5. a3 {[%emt 0:04:40]} Nf6 {[%emt 0:03:10]} 6. Nc3 {[%emt 0:00:12]} Bc5 {[%emt 0:00:34]} 7. Nxc6 {[%emt 0:02:38]} bxc6 {[%emt 0:00:10]} 8. Be2 {[%emt 0:05:23]} d5 {[%emt 0:04:21]} 9. Bf3 {[%emt 0:03:39]} Ba6 {[%emt 0:01:35]} 10. b4 {[%emt 0:05:47]} Bd6 {[%emt 0:01:14]} 11. Rb1 {[%emt 0:02:46]} Bc4 {[%emt 0:04:57]} 12. Bg5 {[%emt 0:02:58]} Be5 {[%emt 0:02:16]} 13. Qd2 {[%emt 0:08:23]} dxe4 {[%emt 0:01:21]} 14. Nxe4 {[%emt 0:02:46]} Qxd2+ {[%emt 0:00:21]} 15. Nxd2 {[%emt 0:00:09]} Bd5 {[%emt 0:00:48]} 16. O-O {[%emt 0:01:09]} Bc3 {[%emt 0:02:22]} 17. Bxd5 {[%emt 0:01:53]} cxd5 {[%emt 0:01:45]} 18. Nf3 {[%emt 0:03:10]} O-O {[%emt 0:03:38]} 19. Bd2 {[%emt 0:04:14]} Rfc8 {[%emt 0:00:41]} 20. Rfc1 {[%emt 0:01:00]} Ne4 {[%emt 0:01:38]} 21. Bxc3 {[%emt 0:00:14]} Nxc3 {[%emt 0:00:04]} 22. Ra1 {[%emt 0:02:11]} Ne2+ {[%emt 0:00:08]} 23. Kf1 {[%emt 0:00:07]} Nxc1 {[%emt 0:00:09]} 24. Rxc1 {[%emt 0:00:02]} Rc3 {[%emt 0:00:12]} 25. a4 {[%emt 0:00:11]} Rb8 {[%emt 0:00:34]} 26. b5 {[%emt 0:00:38]} Rc4 {[%emt 0:01:23]} 27. a5 {[%emt 0:00:56]} Rxb5 {[%emt 0:01:11]} 28. h3 {[%emt 0:00:30]} Rxa5 {[%emt 0:00:22]} 29. Rb1 {[%emt 0:00:11]} Rc8 {[%emt 0:00:06]} 30. Ke1 {[%emt 0:00:37]} f6 {[%emt 0:00:11]} 31. Kd2 {[%emt 0:00:11]} Ra2 {[%emt 0:00:19]} 32. Rc1 {[%emt 0:00:49]} a5 {[%emt 0:00:34]} 33. Nd4 {[%emt 0:00:07]} e5 {[%emt 0:00:53]} 34. Nf5 {[%emt 0:00:05]} Kf8 {[%emt 0:00:07]} 35. Nd6 {[%emt 0:00:27]} Rc6 {[%emt 0:00:35]} 36. Nb5 {[%emt 0:00:57]} d4 {[%emt 0:00:58]} 37. Kd3 {[%emt 0:00:21]} Rb2 {[%emt 0:01:49]} 38. Na7 {[%emt 0:00:19]} Rc3+ {[%emt 0:00:14]} 39. Ke4 {[%emt 0:00:25]} Rcxc2 {[%emt 0:00:45]} 40. Rd1 {[%emt 0:00:11]} Rb7 {[%emt 0:00:49]} 41. Kf5 {[%emt 0:00:16]} Rxa7 {[%emt 0:00:19]} 42. Ke6 {[%emt 0:00:05]} Rc6+ {[%emt 0:00:10]} 43. Kd5 {[%emt 0:00:06]} Rcc7 {[%emt 0:00:22]} 44. Ke6 {[%emt 0:00:09]} a4 {[%emt 0:00:26]} 45. Rb1 {[%emt 0:00:06]} Rc8 {[%emt 0:00:08]} 46. g3 {[%emt 0:00:13]} a3 {[%emt 0:00:04]} 47. g4 {[%emt 0:00:16]} a2 {[%emt 0:00:04]} 48. Ra1 {[%emt 0:00:04]} Rb8 {[%emt 0:00:09]} *

[Event "VIII Open Semana Santa-B 2024"]
[Site "San Vicente del Raspeig"]
[Date "2024.03.28"]
[Round "2.1"]
[White "Garcia Vives, Joan"]
[Black "Demerson Joly, Javier"]
[Result "1/2-1/2"]
[ECO "C42"]
[WhiteElo "1783"]
[BlackElo "1900"]
[Annotator "RC"]
[PlyCount "60"]
[EventDate "2024.03.27"]
[EventType "swiss"]
[EventCountry "ESP"]
[SourceTitle "playchess.com"]
[Source "ChessBase"]
[SourceQuality "1"]
[TimeControl "5400+30"]

1. e4 {[%emt 0:00:07]} e5 {[%emt 0:00:16]} 2. Nf3 {[%emt 1:31:23]} Nf6 {[%emt 0:00:22]} 3. Nxe5 {[%emt 0:00:00]} d6 {[%emt 0:00:19]} 4. Nf3 {[%emt 0:00:00]} Nxe4 {[%emt 0:00:21]} 5. d4 {[%emt 0:00:00]} d5 {[%emt 0:00:15]} 6. Bd3 {[%emt 0:00:00]} Bf5 {[%emt 0:00:54]} 7. O-O {[%emt 0:00:00]} Be7 {[%emt 0:00:28]} 8. Re1 {[%emt 0:00:00]} O-O {[%emt 0:00:43]} 9. c4 {[%emt 0:00:00]} c6 {[%emt 0:11:22]} 10. Nc3 {[%emt 0:00:00]} Nxc3 {[%emt 0:02:19]} 11. bxc3 {[%emt 0:00:00]} Bxd3 {[%emt 0:01:39]} 12. Qxd3 dxc4 {[%emt 0:01:20]} 13. Qxc4 {[%emt 0:00:00]} Nd7 {[%emt 0:02:39]} 14. Bf4 {[%emt 0:00:00]} Bf6 {[%emt 0:05:31]} 15. Bd6 {[%emt 0:00:00]} Nb6 {[%emt 0:03:28]} 16. Qc5 {[%emt 0:00:00]} Re8 {[%emt 0:01:11]} 17. Rxe8+ {[%emt 0:00:00]} Qxe8 {[%emt 0:00:07]} 18. Re1 {[%emt 0:00:00]} Qd7 {[%emt 0:08:35]} 19. Be7 {[%emt 0:00:00]} Re8 {[%emt 0:03:34]} 20. Bxf6 {[%emt 0:00:00]} Rxe1+ {[%emt 0:00:18]} 21. Nxe1 {[%emt 0:00:00]} gxf6 {[%emt 0:00:11]} 22. Qa5 {[%emt 0:00:00]} Nc8 {[%emt 0:03:36]} 23. Nd3 {[%emt 0:00:00]} b6 {[%emt 0:00:26]} 24. Qa4 {[%emt 0:00:00]} Ne7 {[%emt 0:07:00]} 25. g3 {[%emt 0:00:00]} Nd5 {[%emt 0:04:12]} 26. Qc4 {[%emt 0:00:00]} Qe6 {[%emt 0:01:19]} 27. Nb4 {[%emt 0:00:00]} Qe1+ {[%emt 0:03:04]} 28. Kg2 {[%emt 0:00:00]} Qe4+ {[%emt 0:07:26]} 29. Kg1 {[%emt 0:00:00]} Qe1+ {[%emt 0:01:07]} 30. Kg2 {[%emt 0:00:00]} Qe4+ {[%emt 0:00:30]} 1/2-1/2

[Event "VIII Open Semana Santa-B 2024"]
[Site "San Vicente del Raspeig"]
[Date "2024.03.28"]
[Round "2.2"]
[White "Garcia Ruano, Juan Carlos"]
[Black "Soler Nadal, Jose Antonio"]
[Result "1-0"]
[ECO "B13"]
[WhiteElo "1885"]
[BlackElo "1781"]
[Annotator "NA RC"]
[PlyCount "145"]
[EventDate "2024.03.27"]
[EventType "swiss"]
[EventCountry "ESP"]
[SourceTitle "playchess.com"]
[Source "ChessBase"]
[SourceQuality "1"]
[TimeControl "5400+30"]

1. e4 {[%emt 0:00:34]} c6 {[%emt 0:00:15]} 2. d4 {[%emt 0:00:15]} d5 {[%emt 0:00:08]} 3. exd5 {[%emt 0:09:09]} cxd5 {[%emt 0:00:40]} 4. Bd3 {[%emt 0:00:16]} Nf6 {[%emt 0:00:22]} 5. c3 {[%emt 0:01:30]} Nc6 {[%emt 0:02:43]} 6. Bf4 {[%emt 0:02:07]} Bg4 {[%emt 0:01:53]} 7. Qb3 {[%emt 0:02:45]} Na5 {[%emt 0:00:44]} 8. Qc2 {[%emt 0:04:05]} e6 {[%emt 0:03:18] B13: Caro-Kann: Exchange Variation and Panov-Botvinnik Attack.} 9. Nd2 {[%emt 0:00:56]} Bd6 {[%emt 0:05:55]} 10. Bxd6 {[%emt 0:02:30]} Qxd6 {[%emt 0:00:07]} 11. Ngf3 {[%emt 0:00:56]} Nc6 {[%emt 0:02:06]} 12. O-O {[%emt 0:02:03]} Bh5 {[%emt 0:02:17]} 13. Rae1 {[%emt 0:02:00]} Rc8 {[%emt 0:01:32]} 14. Qb1 {[%emt 0:03:05]} Nd7 {[%emt 0:05:19]} 15. Re3 {[%emt 0:09:03]} Bg6 {[%emt 0:02:24]} 16. Rfe1 {[%emt 0:03:38]} O-O {[%emt 0:01:43]} 17. Ne5 {[%emt 0:00:46]} Ndxe5 {[%emt 0:04:59]} 18. dxe5 {[%emt 0:00:12]} Qc7 {[%emt 0:00:18]} 19. Nb3 {[%emt 0:02:31]} d4 {[%emt 0:04:07]} 20. Nxd4 {[%emt 0:00:43]} Nxd4 {[%emt 0:00:32]} 21. cxd4 {[%emt 0:00:06]} Rfd8 {[%emt 0:00:14]} 22. Bxg6 {[%emt 0:00:08]} hxg6 {[%emt 0:00:12]} 23. Qe4 {[%emt 0:00:42]} Qb6 {[%emt 0:01:31]} 24. Rb3 {[%emt 0:07:38]} Rxd4 {[%emt 0:11:27]} 25. Qf3 {[%emt 0:04:38]} Qa5 {[%emt 0:04:34]} 26. Rf1 {[%emt 0:07:07]} b6 {[%emt 0:01:59]} 27. Qb7 {[%emt 0:00:29]} Rdc4 {[%emt 0:04:46]} 28. Ra3 {[%emt 0:02:11]} Qxe5 {[%emt 0:02:36]} 29. Rxa7 {[%emt 0:00:33]} R4c7 {[%emt 0:15:36]} 30. Qxb6 {[%emt 0:08:18]} Rc1 {[%emt 0:02:49]} 31. Qe3 {[%emt 0:04:02]} Qxb2 {[%emt 0:05:30]} 32. g3 {[%emt 0:01:27]} Rxf1+ {[%emt 0:02:34]} 33. Kxf1 {[%emt 0:00:11]} Rc1+ {[%emt 0:02:12]} 34. Kg2 {[%emt 0:00:12]} Qb1 {[%emt 0:00:25]} 35. Qf4 {[%emt 0:05:29]} Rg1+ {[%emt 0:03:48]} 36. Kh3 {[%emt 0:00:09]} Qf1+ {[%emt 0:02:37]} 37. Kg4 {[%emt 0:02:45]} f5+ {[%emt 0:02:27]} 38. Kg5 {[%emt 0:00:23]} Qd1 {[%emt 0:00:34]} 39. Ra8+ {[%emt 0:00:13]} Kh7 {[%emt 0:00:34]} 40. Qh4+ {[%emt 0:00:47]} Qh5+ {[%emt 0:00:20]} 41. Qxh5+ {[%emt 0:00:03]} gxh5 {[%emt 0:00:13]} 42. Kxh5 {[%emt 0:03:59]} Rg2 {[%emt 0:00:08]} 43. f4 {[%emt 0:00:57]} Rxh2+ {[%emt 0:01:15]} 44. Kg5 {[%emt 0:00:01]} Rh3 {[%emt 0:01:09]} 45. Ra3 {[%emt 0:00:24]} Rh2 {[%emt 0:00:34]} 46. Re3 {[%emt 0:00:11]} Rxa2 {[%emt 0:00:29]} 47. Rxe6 {[%emt 0:00:06]} Rg2 {[%emt 0:00:37]} 48. Re3 {[%emt 0:00:12]} Rb2 {[%emt 0:00:42]} 49. Kxf5 {[%emt 0:00:04]} Rb5+ {[%emt 0:00:13]} 50. Kg4 {[%emt 0:00:01]} Kg6 {[%emt 0:00:17]} 51. Re7 {[%emt 0:00:13]} Kf6 {[%emt 0:00:17]} 52. Rc7 {[%emt 0:00:02]} Rd5 {[%emt 0:00:32]} 53. Rc4 {[%emt 0:00:21]} Rb5 {[%emt 0:00:23]} 54. Kh4 {[%emt 0:00:18]} Rb1 {[%emt 0:00:38]} 55. Kg4 {[%emt 0:01:06]} Rb5 {[%emt 0:00:13]} 56. Rc6+ {[%emt 0:00:11]} Kf7 {[%emt 0:00:19]} 57. Kh4 {[%emt 0:00:19]} Rb1 {[%emt 0:00:12]} 58. Kg5 {[%emt 0:00:17]} Rb3 {[%emt 0:00:53]} 59. Rc7+ {[%emt 0:00:11]} Kg8 {[%emt 0:00:22]} 60. g4 {[%emt 0:00:10]} Rb5+ {[%emt 0:00:41]} 61. Kg6 {[%emt 0:00:56]} Rb6+ {[%emt 0:00:12]} 62. Kh5 {[%emt 0:00:20]} Rh6+ {[%emt 0:00:17]} 63. Kg5 {[%emt 0:00:07]} Rb6 {[%emt 0:00:17]} 64. Rc5 {[%emt 0:00:18]} Kh7 {[%emt 0:00:21]} 65. Kh4 {[%emt 0:00:19]} Rh6+ {[%emt 0:00:43]} 66. Kg3 {[%emt 0:00:02]} Rb6 {[%emt 0:00:14]} 67. g5 {[%emt 0:00:06]} Rb3+ {[%emt 0:00:25]} 68. Kg4 {[%emt 0:00:07]} Rb6 {[%emt 0:00:56]} 69. f5 {[%emt 0:00:29]} Rb4+ {[%emt 0:00:12]} 70. Kh5 {[%emt 0:00:13]} Rb8 {[%emt 0:00:54]} 71. Rc7 {[%emt 0:00:29]} Kg8 {[%emt 0:00:18]} 72. Kg6 {[%emt 0:00:34]} Ra8 {[%emt 0:00:28]} 73. Rxg7+ {[%emt 0:00:08]} 1-0